Cogmind - Beta 13 @@@ ROGUE MODE // 2024.07.12 @ 21:40:40 Player: APerTAS Result: Destroyed by G-47 Trooper with Particle Gun Performance ------------- Evolutions (0) 0 Regions Visited (4) 800 Robots Destroyed (23) 115 Value Destroyed (536) 536 Prototype IDs (23) 460 Alien Tech Used (0) 0 Bonus (300) 300 TOTAL SCORE: 2211 Bonus ------- Aligned with FarCom 300 Cogmind --------- Core Integrity 0/250 Matter 296/300 Energy 263/265 System Corruption 0% Temperature Cool (20) Movement Walking (120) Location -9/Mines Parts ------- > --- POWER (1) -------- Improved Ion Engine > --- PROPULSION (2) --- Aluminum Leg Aluminum Leg > --- UTILITY (2) ------ Medium Storage Unit Signal Interpreter > --- WEAPON (2) ------- Light Assault Rifle Light Assault Rifle > --- INVENTORY (10) --- Ion Engine Aluminum Leg Heat Sink High-capacity Matter Pod (200) Sensor Array Core Analyzer Improved Medium Armor Plating EMP Blaster Grenade Launcher Mace Peak State ------------ > --- POWER ------------ Light Nuclear Core > --- PROPULSION ------- Aluminum Leg Aluminum Leg > --- UTILITY ---------- Heat Sink Medium Storage Unit > --- WEAPON ----------- Heavy EM Pulse Gun Small Laser > --- INVENTORY -------- Ion Engine Improved Ion Engine Aluminum Leg Aluminum Leg Medium Laser Small Laser Assault Rifle EMP Blaster [Rating: 11] Favorites ----------- Power Improved Ion Engine Engine Improved Ion Engine Power Core Light Nuclear Core Propulsion Aluminum Leg Treads Light Treads Leg Aluminum Leg Utility Medium Storage Unit Device Sensor Array Storage Medium Storage Unit Processor Signal Interpreter Weapon Light Assault Rifle Energy Gun Small Laser Ballistic Gun Light Assault Rifle Launcher Grenade Launcher Build | -11 -10 -10 -10 -9 ------- Run | Yrd Mat Min Exi Min Slots Evolved . | . . . . . Power . | . . . . . Propulsion . | . . . . . Utility . | . . . . . Weapon . | . . . . . Parts Attached 38 | 6 18 10 1 3 Power 6 | 1 4 1 . . Engine 5 | 1 3 1 . . Core 1 | . 1 . . . Reactor . | . . . . . Propulsion 9 | 2 4 3 . . Treads 2 | 2 . . . . Leg 7 | . 4 3 . . Wheel . | . . . . . Hover . | . . . . . Flight . | . . . . . Utility 8 | 1 4 1 1 1 Device 4 | . 3 1 . . Storage 3 | 1 1 . 1 . Processor 1 | . . . . 1 Hackware . | . . . . . Protection . | . . . . . Artifact . | . . . . . Weapon 15 | 2 6 5 . 2 Energy Gun 7 | . 4 3 . . Energy Cannon . | . . . . . Ballistic Gun 6 | 2 1 1 . 2 Ballistic Cannon . | . . . . . Launcher 2 | . 1 1 . . Special Weapon . | . . . . . Impact Weapon . | . . . . . Slashing Weapon . | . . . . . Piercing Weapon . | . . . . . Special Melee Weapon . | . . . . . Unidentified Prototypes . | . . . . . Parts Lost 4 | . 2 2 . . Power 1 | . . 1 . . Propulsion 2 | . 2 . . . Utility . | . . . . . Weapon 1 | . . 1 . . Highest Loss Streak 2 | . 2 2 . . To Critical Strikes . | . . . . . Average Slot Usage (%) 92 | . 91 92 85 99 Engine 12 | . 9 13 14 14 Core 1 | . 4 . . . Treads 6 | . 17 . . . Leg 20 | . 9 28 28 28 Device 10 | . 6 13 14 10 Storage 14 | . 14 14 14 14 Energy Gun 5 | . 11 7 . . Ballistic Gun 18 | . 16 12 14 27 Naked Turns . | . . . . . Heaviest Build 20 | 14 20 20 19 20 Greatest Support 40 | 40 40 20 20 20 Greatest Overweight (x) . | . . . . . Average Overweight (x) . | . . . . . Largest Inventory Capacity 10 | 8 10 10 10 10 Average Capacity 9 | 7 9 10 10 10 Most Carried 10 | 4 10 10 10 10 Average Carried 8 | 1 6 8 9 9 Final Capacity 10 | 8 10 10 10 10 Final Carried 10 | 2 10 9 10 10 Class Distribution -------------------- 52% | Scavenger-Mutant 27% | Mutant 20% | Scavenger-Skirmisher Dominant Class ---------------- Mutant | -10/Materials Scavenger-Mutant | -10/Mines Scavenger-Mutant | -10/Exiles Scavenger-Skirmisher | -9/Mines Resources | -11 -10 -10 -10 -9 ----------- Run | Yrd Mat Min Exi Min Matter Collected 764 | 230 351 57 84 42 Remotely . | . . . . . Salvage Created 584 | . 471 74 . 39 Parts 55 | . 41 6 . 8 Haulers Intercepted . | . . . . . Recyclers Shooed . | . . . . . Parts Field Recycled . | . . . . . Retrieved Matter . | . . . . . Parts Self-Destructed . | . . . . . Prevented . | . . . . . Kills | -11 -10 -10 -10 -9 ------- Run | Yrd Mat Min Exi Min Combat Hostiles Destroyed 23 | . 15 5 . 3 Guns 19 | . 15 1 . 3 AOE 4 | . . 4 . . Classes Destroyed 4 | . 3 1 . . Watcher 1 | . 1 . . . Swarmer 11 | . 6 2 . 3 Grunt 11 | . 9 2 . . Assembled 1 | . . 1 . . Best Kill Streak 8 | . 8 4 . 3 Combat Bots Only 8 | . 8 4 . 3 Max Kills in Single Turn 2 | . 1 2 . 1 Gunslinging . | . . . . . Exploded 2 | . . 2 . . Melee . | . . . . . Uniques/NPCs Destroyed . | . . . . . Combat | -11 -10 -10 -10 -9 -------- Run | Yrd Mat Min Exi Min Hostile Shots Fired 188 | . 128 35 . 25 Missed 46 | . 30 6 . 10 Damage Taken 1576 | . 956 478 . 142 Core 254 | . 179 44 . 31 Absorbed by Shields . | . . . . . Core Remaining (%) 100 | 100 . . . . Volleys Fired 76 | . 50 13 . 13 Largest 2 | . 2 2 . 2 Hottest 85 | . 85 85 . 40 Shots Fired 141 | . 100 25 . 16 Gun 138 | . 100 22 . 16 Cannon . | . . . . . Launcher 3 | . . 3 . . Special . | . . . . . Kinetic 94 | . 72 6 . 16 Thermal 40 | . 27 13 . . Explosive 3 | . . 3 . . Electromagnetic 4 | . 1 3 . . Robot Hit Streak 13 | . 13 4 . 4 Robot Miss Streak 5 | . 5 3 . 3 Penetration Max . | . . . . . Secondary Targets 9 | . 8 1 . . Max Gunslinging Chain 1 | . 1 1 . . Shots Hit Robots 79 | . 63 7 . 9 Core Hits 38 | . 27 7 . 4 Critical Kills . | . . . . . Critical Parts Destroyed . | . . . . . Critical Strikes . | . . . . . Melee Attacks . | . . . . . Impact . | . . . . . Slashing . | . . . . . Piercing . | . . . . . Sneak Attacks . | . . . . . Combat Hostiles . | . . . . . Follow-up Attacks . | . . . . . Damage Inflicted 1139 | . 718 353 . 68 Guns 848 | . 717 63 . 68 Cannons . | . . . . . Explosions 290 | . . 290 . . Melee . | . . . . . Ramming 1 | . 1 . . . Kinetic 604 | . 507 29 . 68 Thermal 327 | . 210 117 . . Explosive 207 | . . 207 . . Electromagnetic . | . . . . . Impact . | . . . . . Slashing . | . . . . . Piercing . | . . . . . Highest Corruption . | . . . . . Average Corruption . | . . . . . Corruption Purged . | . . . . . Corruption Blocked . | . . . . . Overload Shots . | . . . . . Overflow Damage 96 | . . 96 . . Projectiles . | . . . . . Explosions 96 | . . 96 . . Melee . | . . . . . Knockbacks 1 | . 1 . . . Impact 1 | . 1 . . . Kinetic . | . . . . . Secondary . | . . . . . Self-Inflicted Damage 69 | . . 69 . . Shots 2 | . . 2 . . Rammed . | . . . . . Targets Rammed 1 | . 1 . . . Kicked 1 | . 1 . . . Crushed . | . . . . . Highest Temperature 395 | . 395 96 . 11 Average Temperature 142 | . 206 39 . 2 Received Heat Transfer 381 | . 306 39 . 36 Effects 3 | . 3 . . . Energy Bleed 1 | . 1 . . . Short Circuit 1 | . 1 . . . Damage (minor) 1 | . 1 . . . Siege Activations . | . . . . . Robots Corrupted . | . . . . . Combat Hostiles . | . . . . . Parts Fried . | . . . . . Impact Corruptions . | . . . . . Robots Melted . | . . . . . Combat Hostiles . | . . . . . Parts Melted . | . . . . . Heat Transferred 795 | . 570 225 . . Parts Sabotaged . | . . . . . Parts Stolen . | . . . . . Parts Stripped . | . . . . . Power Chain Reactions . | . . . . . Alert | -11 -10 -10 -10 -9 ------- Run | Yrd Mat Min Exi Min Peak Influence 251 | . 251 210 . 70 Initial 53 | . . 53 . . Average 85 | . 101 186 . 34 Maximum Alert Level 1 | . 1 1 . . Low Security (%) 85 | 100 81 60 . 100 Level 1 14 | . 18 39 . . Level 2 . | . . . . . Level 3 . | . . . . . Level 4 . | . . . . . Level 5 . | . . . . . High Security . | . . . . . Max Security . | . . . . . Squads Dispatched 5 | . 3 . . 2 Investigation 4 | . 3 . . 1 Extermination . | . . . . . Reinforcement . | . . . . . Assault 1 | . . . . 1 Garrison . | . . . . . Intercept . | . . . . . Searches Triggered . | . . . . . Construction Impeded . | . . . . . Haulers Reinforced . | . . . . . Active Scanning Responses . | . . . . . Cargo Convoy Interrupts . | . . . . . Stealth | -11 -10 -10 -10 -9 --------- Run | Yrd Mat Min Exi Min Distress Signals 3 | . 3 . . . Communications Jammed . | . . . . . Distress Signals . | . . . . . Times Spotted 41 | . 23 9 . 9 Peak Tracking Total 7 | . 7 4 . 4 Tactical Retreats 1 | . . 1 . . Traps | -11 -10 -10 -10 -9 ------- Run | Yrd Mat Min Exi Min Traps Triggered 1 | . 1 . . . Indirectly . | . . . . . Trap Hack Attempts . | . . . . . Triggered . | . . . . . Disarmed 6 | . 6 . . . Reprogrammed . | . . . . . Reused . | . . . . . Traps Extracted . | . . . . . Installed . | . . . . . Triggered . | . . . . . Machines | -11 -10 -10 -10 -9 ---------- Run | Yrd Mat Min Exi Min Machines Disabled 1 | . . 1 . . Max in Single Turn 1 | . . 1 . . Machines Repaired . | . . . . . Machines Dismantled . | . . . . . Machines Sabotaged . | . . . . . Overloaded Fab Kills . | . . . . . Hacking | -11 -10 -10 -10 -9 --------- Run | Yrd Mat Min Exi Min Machines Accessed 9 | . 6 1 1 1 Terminals 5 | . 4 1 . . Fabricators . | . . . . . Repair Stations . | . . . . . Recycling Units 2 | . 2 . . . Scanalyzers . | . . . . . Garrison Access . | . . . . . Total Hacks 20 | . 16 2 1 1 Successful 11 | . 9 . 1 1 Failed 9 | . 7 2 . . Catastrophic 2 | . 1 1 . . Database Lockouts . | . . . . . Manual 12 | . 9 2 1 . Terminals 16 | . 14 2 . . Fabricators . | . . . . . Repair Stations . | . . . . . Recycling Units 2 | . 2 . . . Scanalyzers . | . . . . . Garrison Access . | . . . . . Terminal Hacks 9 | . 7 . 1 1 Record 2 | . 2 . . . Open Door 1 | . . . . 1 Emergency Access Points 1 | . 1 . . . Locate Traps 1 | . 1 . . . Disarm Traps 1 | . 1 . . . Zone Layout 2 | . 2 . . . Derelict Proto ID Bank 1 | . . . 1 . Fabricator Hacks . | . . . . . Repair Station Hacks . | . . . . . Recycling Unit Hacks . | . . . . . Scanalyzer . | . . . . . Garrison Access Hacks . | . . . . . Unauthorized Hacks 2 | . 2 . . . Terminals . | . . . . . Fabricators . | . . . . . Repair Stations . | . . . . . Recycling Units 2 | . 2 . . . Mask 1 | . 1 . . . Tunnel 1 | . 1 . . . Scanalyzers . | . . . . . Garrison Access . | . . . . . Data Cores Recovered . | . . . . . Used . | . . . . . Hacking Detections 5 | . 4 1 . . Full Trace Events 2 | . 2 . . . Feedback Events . | . . . . . Feedback Blocked . | . . . . . Robot Schematics Acquired . | . . . . . Robots Built . | . . . . . Authchips . | . . . . . Time . | . . . . . Total Robot Build Rating . | . . . . . Part Schematics Acquired . | . . . . . Parts Built . | . . . . . Authchips . | . . . . . Time . | . . . . . Total Part Build Rating . | . . . . . Parts Repaired . | . . . . . Time . | . . . . . Parts Recycled . | . . . . . Recycled Matter . | . . . . . Retrieved Matter . | . . . . . Retrieved Components . | . . . . . Parts Scanalyzed . | . . . . . Part Schematics Acquired . | . . . . . Parts Damaged . | . . . . . Bothacking | -11 -10 -10 -10 -9 ------------ Run | Yrd Mat Min Exi Min Used RIF Installer . | . . . . . Robots Hacked . | . . . . . Non-combat . | . . . . . Combat . | . . . . . Robot Hacks Applied . | . . . . . Relay Couplers Released . | . . . . . Fabnet Peak Effective % . | . . . . . Robots Rewired . | . . . . . Allies Hacked . | . . . . . Hacks Repelled . | . . . . . Allies | -11 -10 -10 -10 -9 -------- Run | Yrd Mat Min Exi Min Total Allies 1 | . . . . 1 Largest Group 1 | . . . . 1 Highest-Rated Group 31 | . . . . 31 Highest-Rated Ally 31 | . . . . 31 Total Orders . | . . . . . Ally Attacks 4 | . . . . 4 Total Damage 61 | . . . . 61 Kills . | . . . . . Allies Corrupted . | . . . . . Allies Melted . | . . . . . Intel | -11 -10 -10 -10 -9 ------- Run | Yrd Mat Min Exi Min Robot Analysis Total . | . . . . . Derelict Logs Recovered 3 | . . 1 . 2 Drone Launches . | . . . . . Drone Recoveries . | . . . . . Exploration | -11 -10 -10 -10 -9 ------------- Run | Yrd Mat Min Exi Min Turns Passed 2924 | 93 1090 297 667 777 Spaces Moved 2029 | 61 621 190 552 605 Core 16 | 16 . . . . Treads 409 | 45 364 . . . Legs 1604 | . 257 190 552 605 Wheels . | . . . . . Hover . | . . . . . Flight . | . . . . . Fastest Speed 50 | 50 120 120 120 120 Average Speed 127 | 131 143 120 120 120 Slowest Speed 160 | 160 160 120 120 120 Overloaded Moves . | . . . . . Propulsion Burnouts . | . . . . . Robots Hopped . | . . . . . Cave-ins Triggered . | . . . . . Exploration Rate (%) 63 | 4 80 45 89 97 Regions Visited 4 Branch Regions 3 Pre-discovered Areas 1 | . 1 . . . Known Exits Taken . | . . . . . Unknown Exits Taken 4 | 1 1 1 1 . Scrap Searched 4 | . . . . 4 Spaces Dug . | . . . . . Terrain Destroyed 22 | . . 22 . . Melee . | . . . . . Projectile . | . . . . . AOE 22 | . . 22 . . Terrain Rammed . | . . . . . Walls Destroyed . | . . . . . Machines Disabled . | . . . . . Actions | -11 -10 -10 -10 -9 --------- Run | Yrd Mat Min Exi Min Total 2240 | 74 727 236 556 647 Wait 35 | . 5 16 . 14 Move 2025 | 60 620 189 551 605 Hop . | . . . . . Pick Up 40 | 8 22 2 2 6 Fast Attach . | . . . . . Attach 17 | 6 5 5 . 1 Detach 4 | . . 4 . . Swap 21 | . 13 5 1 2 Drop 19 | . 11 2 1 5 Fire 76 | . 50 13 . 13 Melee . | . . . . . Ram . | . . . . . Kick 1 | . 1 . . . Crush . | . . . . . Escape Stasis . | . . . . . Rewire 2 | . . . 1 1 Trap . | . . . . . Miscellaneous . | . . . . . Route ------- -11/Scrapyard -10/Materials (discovered 4 exits: [*Mat x2] / *Min x2) -10/Mines (discovered 2 exits: [*Mat] / *Exi) -10/Exiles -9/Mines (discovered 2 exits: *Mat x2) History --------- Turn | Location | Event 5 | -11/Scrapyard | Discovered new exit (range 15) 94 | -11/Scrapyard | Entered Materials 304 | -10/Materials | Build established: Mutant 403 | -10/Materials | Destroyed 8 combat bots 486 | -10/Materials | Discovered new exit (range 17) 673 | -10/Materials | Discovered new exit (range 4) 793 | -10/Materials | Core integrity fell below 50% 1021 | -10/Materials | Discovered new exit (range 3) 1108 | -10/Materials | Build established: Scavenger-Mutant 1119 | -10/Materials | Discovered new exit (range 9) 1184 | -10/Materials | Entered Mines 1278 | -10/Mines | Assembled infested the area 1315 | -10/Mines | Core integrity fell below 20% 1350 | -10/Mines | Learned Materials security intel 1434 | -10/Mines | Discovered new exit (range 8) 1472 | -10/Mines | Deemed a non-threat by the Exiles lab entrance 1473 | -10/Mines | Discovered new exit (range 5) 1481 | -10/Mines | Entered Exiles 1510 | -10/Exiles | Met 8R-AWN 1531 | -10/Exiles | Met EX-HEX 1565 | -10/Exiles | Met EX-BIN 1579 | -10/Exiles | Aligned with FarCom system 1580 | -10/Exiles | Given EX-Vault access code 1607 | -10/Exiles | Opened EX-Vault 1642 | -10/Exiles | Warned to stay clear of 0b10 Research branches 1685 | -10/Exiles | Met EX-DEC 1940 | -10/Exiles | Visited The Gauntlet 2134 | -10/Exiles | Discovered new exit (range 14) 2148 | -10/Exiles | Entered Mines 2200 | -9/Mines | Learned 2 Materials zone layouts 2346 | -9/Mines | Met a Derelict shopkeep closing up shop 2469 | -9/Mines | Build established: Scavenger-Skirmisher 2542 | -9/Mines | Learned location of 1 exit from Materials 2546 | -9/Mines | YI-UF0 nonchalantly dropped a Grenade Launcher on the ground 2727 | -9/Mines | Discovered new exit (range 9) 2749 | -9/Mines | Discovered new exit (range 9) 2769 | -9/Mines | Identified exit to Materials 2823 | -9/Mines | Met a Derelict testing a Signal Generator 2925 | -9/Mines | Destroyed by G-47 Trooper with Particle Gun Last Messages --------------- ALERT: Intercepting significant anomalous signal. Dispatching assault force. U-05 Engineer lays Concrete. FD-LWS(g): "Okay, I guess that means it works. Now let's get out of here!" U-05 Engineer lays Concrete. U-05 Engineer builds a Wall. U-05 Engineer lays Concrete. U-05 Engineer builds a Wall. Signal Generator broadcasts a burst of procedurally generated transmissions. ALERT: Intercepting significant anomalous signal. Redirecting assault force. U-05 Engineer builds a Wall. ALERT: Intercepting significant anomalous signal. Redirecting assault force. U-05 Engineer builds a Wall. G-34 Mercenary unfolds itself. Acquired 10 matter. Acquired 2 matter. Map ----- +----------------------------------------------------+ | #???????????????# #?????????????????# #?????# | | #???????????????# #?????????????????## ##????# | | #???????????????# #???????????????#### ###??? | | #???????????????# #???????????????# %= ##?? | | #??????????????## #?# ??????### ##% #?? | | ##############?# #?# ### ##/ ## #?? | | ### #?# #?# ##?? | | ##### ###### [#????????###### #### #??###??? | | #???# #????# = ##????????????# ??# #???????? | | #???# #????##### =%%#????????????# #??# #???????# | | #???# #????????# *=#????????????# #??# #???????# | | ????# #????????## ##????????????#!#??# #??????## | | ????# #?????????# ##?????????????#!#??# ######## | | ????# #?????????# #??????????????#[#??# | | ????# #?????????# #??????????????# #?## | | ##### #?????????# #??????????????# ### | | # #????????## #??????????????# ## | | # #####???????## ##?????????????# ### #### | | # #??????????## #?????????????# #?## ##??# | | # ########??## #?????????????# ##?#####??## | | #?## g##??????######## ##????#### | | #?# ##???????# ##??## | | #?# ##????????# #### | | #?## g##????????# ##### # | | #??## g########## #???## ## # | | # #???# g @ #????## #### ## | | # #???# r #?????## #??####? | | #??##!!k ###########??????## #??????? | | #??# ##?????????????????# #?????? | | #X #??# ##??????????????????# #?????? | | # #### ###???????????????????## #????? | | #??????????????????????## #????? | | #######???????????????????????## ##????? | | #??????????????????????????????####?????? | | ##########???????????????????????????????????????? | | ?????????????????????????????????????????????????? | | ?????????????????????????????????????????????????? | | ?????????????????????????????????????????????????? | | ?????????????????????????????????????????????????? | | ?????????????????????????????????????????????????? | | ?????????????????????????????????????????????????? | | | | | | | | | | | | | | | | | | | +----------------------------------------------------+ Best States ------------- Heat Dissipation 35 Energy Generation 14 Energy Capacity 265 Matter Stores 300 Matter Capacity 300 Sight Range 16 Robot Scan Range 14 Terrain Scan Density 10 Evasion (%) 55 Recoil Reduction 2 Item Schematics ----------------- None Robot Schematics ------------------ None Fabricated ------------ Nothing Alien Tech Used ----------------- None Achievements -------------- None Challenges ------------ None Game ------ Seed TargetDroneDoomcannon Manual? 0 Play Time 00:28:12 Cumulative 10.4 hours Start 2024.07.12 @ 21:14:45 End 2024.07.12 @ 21:40:40 Sessions 1 Manual Loads 0 Difficulty Rogue Special Mode None Game No. 26 Rogue 26 Adventurer 0 Explorer 0 Win Type - Total 0 Types 0/0/0/0/0/0/0/0/0 Lore% 17 Gallery% 14 Achievement% 15 Wizard Run 0 Options --------- Layout 1 ASCII 0 Keyboard 0 Movement Arrows Keybinds 0 Fullscreen 1 Font 28/Dina Map View 50x43 Zoom Use 0% Tactical HUD 0 Map Filters NONE Filters NONE Steam 1 RUN: 10b275ed-ca4b-4faf-b743-008382135deb